fUSD/lending_fUSD_20241013
["ID","MTS","AMOUNT","RATE_DAILY","PERIOD"]
[340217461,1728850248463,-1076.27,0.00022499,2]
[340217462,1728850248473,-1076.27,0.00022499,2]
[340217463,1728850248482,-1124.83,0.00022499,2]
[340217464,1728850248492,-1124.83,0.00022499,2]
[340217465,1728850248502,-1124.83,0.00022499,2]
[340217466,1728850248512,-1076.27,0.00022499,2]
[340217467,1728850248521,-1076.27,0.00022499,2]
[340217468,1728850248533,-1124.83,0.00022499,2]
[340217469,1728850248543,-1076.27,0.00022499,2]
[340217470,1728850248553,-1124.83,0.00022499,2]
[340217471,1728850248563,-1124.83,0.00022499,2]
[340217472,1728850248573,-1076.27,0.00022499,2]
[340217473,1728850248583,-1124.83,0.00022499,2]
[340217474,1728850248592,-1076.27,0.00022499,2]
[340217475,1728850248602,-1124.83,0.00022499,2]
[340217476,1728850248611,-1076.27,0.00022499,2]
[340217477,1728850248621,-1124.87347972,0.00022499,2]
[340217478,1728850248630,-1076.27,0.00022499,2]
[340217479,1728850248640,-1076.27,0.00022499,2]
[340217480,1728850248651,-1076.27,0.00022499,2]
[340217481,1728850248660,-1076.27,0.00022499,2]
[340217482,1728850248670,-1076.27,0.00022499,2]
[340217483,1728850248680,-1076.27,0.00022499,2]
[340217484,1728850248691,-1076.27,0.00022499,2]
[340217485,1728850248701,-1267.37,0.00022499,2]
[340217486,1728850248711,-1076.34529409,0.00022499,2]
[340217487,1728850248720,-1267.37,0.00022499,2]
[340217488,1728850248729,-1267.37,0.00022499,2]
[340217489,1728850248739,-1267.37,0.00022499,2]
[340217490,1728850248749,-1267.37,0.00022499,2]
[340217491,1728850248759,-1267.37,0.00022499,2]
[340217492,1728850248769,-1267.37,0.00022499,2]
[340217493,1728850248779,-1267.37,0.00022499,2]
[340217494,1728850248789,-1267.37,0.00022499,2]
[340217495,1728850248800,-1267.37,0.00022499,2]
[340217496,1728850248810,-1267.37,0.00022499,2]
[340217497,1728850248819,-1267.37,0.00022499,2]
[340217498,1728850248830,-1267.37,0.00022499,2]
[340217499,1728850248839,-1267.37,0.00022499,2]
[340217500,1728850248848,-1267.37,0.00022499,2]
[340217501,1728850248858,-1267.37,0.00022499,2]
[340217502,1728850248867,-955.59,0.00022499,2]
[340217503,1728850248877,-1267.37,0.00022499,2]
[340217504,1728850248887,-1267.37,0.00022499,2]
[340217505,1728850248897,-955.59,0.00022499,2]
[340217506,1728850248906,-1267.37,0.00022499,2]
[340217507,1728850248915,-955.59,0.00022499,2]
[340217508,1728850248924,-1267.37,0.00022499,2]
[340217509,1728850248934,-955.59,0.00022499,2]
[340217510,1728850248944,-1267.37,0.00022499,2]
[340217511,1728850248956,-955.59,0.00022499,2]
[340217512,1728850248968,-1267.46043431,0.00022499,2]
[340217513,1728850248982,-955.59,0.00022499,2]
[340217514,1728850248996,-955.59,0.00022499,2]
[340217515,1728850249009,-955.59,0.00022499,2]
[340217516,1728850249022,-955.59,0.00022499,2]
[340217517,1728850249034,-955.59,0.00022499,2]
[340217518,1728850249045,-955.59,0.00022499,2]
[340217519,1728850249055,-955.59,0.00022499,2]
[340217520,1728850249068,-955.59,0.00022499,2]
[340217521,1728850249081,-955.59,0.00022499,2]
[340217522,1728850249094,-955.59,0.00022499,2]
[340217523,1728850249105,-955.59,0.00022499,2]
[340217524,1728850249118,-955.59,0.00022499,2]
[340217525,1728850249131,-955.59,0.00022499,2]
[340217526,1728850249143,-955.59,0.00022499,2]
[340217527,1728850249156,-955.59,0.00022499,2]
[340217528,1728850249168,-955.79,0.00022499,2]
[340217529,1728850249180,-1311.54,0.00022499,2]
[340217530,1728850249193,-1311.54,0.00022499,2]
[340217531,1728850249206,-1311.54,0.00022499,2]
[340217532,1728850249220,-1311.54,0.00022499,2]
[340217533,1728850249232,-1311.54,0.00022499,2]
[340217534,1728850249244,-1311.54,0.00022499,2]
[340217535,1728850249255,-1311.54,0.00022499,2]
[340217536,1728850249268,-1311.54,0.00022499,2]
[340217537,1728850249280,-1311.54,0.00022499,2]
[340217538,1728850249292,-1311.54,0.00022499,2]
[340217539,1728850249304,-1311.54,0.00022499,2]
[340217540,1728850249315,-1311.54,0.00022499,2]
[340217541,1728850249328,-1311.54,0.00022499,2]
[340217542,1728850249340,-1311.54,0.00022499,2]
[340217543,1728850249352,-1311.54,0.00022499,2]
[340217544,1728850249364,-1311.54,0.00022499,2]
[340217545,1728850249377,-1311.54,0.00022499,2]
[340217546,1728850249388,-1311.54,0.00022499,2]
[340217547,1728850249399,-1311.54,0.00022499,2]
[340217548,1728850249411,-1311.75004279,0.00022499,2]
[340217549,1728850249421,-1361.96,0.00022499,2]
[340217550,1728850249433,-1361.96,0.00022499,2]
[340217551,1728850249445,-1361.96,0.00022499,2]
[340217552,1728850249457,-1361.96,0.00022499,2]
[340217553,1728850249469,-1361.96,0.00022499,2]
[340217554,1728850249482,-1361.96,0.00022499,2]
[340217555,1728850249494,-1361.96,0.00022499,2]
[340217556,1728850249508,-1361.96,0.00022499,2]
[340217557,1728850249520,-1361.96,0.00022499,2]
[340217558,1728850249532,-1361.96,0.00022499,2]
[340217559,1728850249545,-1361.96,0.00022499,2]
[340217560,1728850249558,-1361.96,0.00022499,2]
[340217561,1728850249570,-1361.96,0.00022499,2]
[340217562,1728850249582,-1361.96,0.00022499,2]
[340217563,1728850249595,-1361.96,0.00022499,2]
[340217564,1728850249606,-1361.96,0.00022499,2]
[340217565,1728850249617,-1361.96,0.00022499,2]
[340217566,1728850249628,-1315.05,0.00022499,2]
[340217567,1728850249638,-1361.96,0.00022499,2]
[340217568,1728850249648,-1315.05,0.00022499,2]
[340217569,1728850249659,-1361.96,0.00022499,2]
[340217570,1728850249671,-1315.05,0.00022499,2]
[340217571,1728850249682,-1371.03,0.00022499,2]
[340217572,1728850249697,-1361.96,0.00022499,2]
[340217573,1728850249709,-1315.05,0.00022499,2]
[340217574,1728850249722,-1371.03,0.00022499,2]
[340217575,1728850249735,-1362.06202811,0.00022499,2]
[340217576,1728850249747,-1315.05,0.00022499,2]
[340217577,1728850249757,-1371.03,0.00022499,2]
[340217578,1728850249768,-1315.05,0.00022499,2]
[340217579,1728850249781,-1371.03,0.00022499,2]
[340217580,1728850249793,-1315.05,0.00022499,2]
[340217581,1728850249804,-1371.03,0.00022499,2]
[340217582,1728850249815,-1315.05,0.00022499,2]
[340217583,1728850249828,-1315.05,0.00022499,2]
[340217584,1728850249840,-1315.05,0.00022499,2]
[340217585,1728850249852,-1371.03,0.00022499,2]
[340217586,1728850249862,-1315.05,0.00022499,2]
[340217587,1728850249873,-1371.03,0.00022499,2]
[340217588,1728850249883,-1315.05,0.00022499,2]
[340217589,1728850249894,-1371.03,0.00022499,2]
[340217590,1728850249906,-1315.05,0.00022499,2]
[340217591,1728850249916,-1315.05,0.00022499,2]
[340217592,1728850249928,-1371.03,0.00022499,2]
[340217593,1728850249940,-1315.05,0.00022499,2]
[340217594,1728850249950,-1371.03,0.00022499,2]
[340217595,1728850249961,-1315.05,0.00022499,2]
[340217596,1728850249971,-1371.03,0.00022499,2]
[340217597,1728850249983,-1315.05,0.00022499,2]
[340217598,1728850249994,-1371.03,0.00022499,2]
[340217599,1728850250004,-1371.03,0.00022499,2]
[340217600,1728850250015,-1315.05,0.00022499,2]
[340217601,1728850250026,-1371.03,0.00022499,2]
[340217602,1728850250036,-1315.05,0.00022499,2]
[340217603,1728850250047,-1371.03,0.00022499,2]
[340217604,1728850250058,-1315.05,0.00022499,2]
[340217605,1728850250068,-1371.03,0.00022499,2]
[340217606,1728850250078,-1315.13562511,0.00022499,2]
[340217607,1728850250090,-1371.03,0.00022499,2]
[340217608,1728850250100,-1371.03,0.00022499,2]
[340217609,1728850250111,-1322.99,0.00022499,2]
[340217610,1728850250123,-1371.03,0.00022499,2]
[340217611,1728850250135,-1322.99,0.00022499,2]
[340217612,1728850250148,-1371.03,0.00022499,2]
[340217613,1728850250159,-1322.99,0.00022499,2]
[340217614,1728850250171,-1371.03,0.00022499,2]
[340217615,1728850250183,-1322.99,0.00022499,2]
[340217616,1728850250194,-1371.26139364,0.00022499,2]
[340217617,1728850250205,-1322.99,0.00022499,2]
[340217618,1728850250215,-1322.99,0.00022499,2]
[340217619,1728850250226,-1322.99,0.00022499,2]
[340217620,1728850250237,-1322.99,0.00022499,2]
[340217621,1728850250247,-1322.99,0.00022499,2]
[340217622,1728850250257,-1322.99,0.00022499,2]
[340217623,1728850250268,-1322.99,0.00022499,2]
[340217624,1728850250280,-1322.99,0.00022499,2]
[340217625,1728850250291,-1322.99,0.00022499,2]
[340217626,1728850250302,-1322.99,0.00022499,2]
[340217627,1728850250313,-1322.99,0.00022499,2]
[340217628,1728850250324,-1322.99,0.00022499,2]
[340217629,1728850250334,-1322.99,0.00022499,2]
[340217630,1728850250345,-1322.99,0.00022499,2]
[340217631,1728850250355,-1322.99,0.00022499,2]
[340217632,1728850250365,-1322.99,0.00022499,2]
[340217633,1728850250376,-1302.69,0.00022499,2]
[340217634,1728850250386,-1322.99,0.00022499,2]
[340217635,1728850250397,-1302.69,0.00022499,2]
[340217636,1728850250408,-1323.05631084,0.00022499,2]
[340217637,1728850250418,-1302.69,0.00022499,2]
[340217638,1728850250429,-1302.69,0.00022499,2]
[340217639,1728850250439,-1302.69,0.00022499,2]
[340217640,1728850250450,-1302.69,0.00022499,2]
[340217641,1728850250460,-1302.69,0.00022499,2]
[340217642,1728850250471,-1302.69,0.00022499,2]
[340217643,1728850250483,-1302.69,0.00022499,2]
[340217644,1728850250494,-1302.69,0.00022499,2]
[340217645,1728850250504,-1302.69,0.00022499,2]
[340217646,1728850250515,-1302.69,0.00022499,2]
[340217647,1728850250526,-1302.69,0.00022499,2]
[340217648,1728850250537,-1302.69,0.00022499,2]
[340217649,1728850250548,-1302.69,0.00022499,2]
[340217650,1728850250558,-1302.69,0.00022499,2]
[340217651,1728850250569,-1302.69,0.00022499,2]
[340217652,1728850250581,-1302.69,0.00022499,2]
[340217653,1728850250593,-1302.69,0.00022499,2]
[340217654,1728850250604,-1302.69,0.00022499,2]
[340217655,1728850250615,-1302.71746215,0.00022499,2]
[340217656,1728850250627,-1383.65,0.00022499,2]
[340217657,1728850250638,-1383.65,0.00022499,2]
[340217658,1728850250839,-1383.65,0.00022499,2]
[340217659,1728850250849,-1383.65,0.00022499,2]
[340217660,1728850250859,-1383.65,0.00022499,2]
[340217661,1728850250868,-1383.65,0.00022499,2]
[340217662,1728850250879,-1383.65,0.00022499,2]
[340217663,1728850250889,-1383.65,0.00022499,2]
[340217664,1728850250898,-1383.65,0.00022499,2]
[340217665,1728850250908,-1383.65,0.00022499,2]
[340217666,1728850250918,-1383.65,0.00022499,2]
[340217667,1728850250927,-1383.65,0.00022499,2]
[340217668,1728850250936,-1383.65,0.00022499,2]
[340217669,1728850250946,-1383.65,0.00022499,2]
[340217670,1728850250955,-1383.65,0.00022499,2]
[340217671,1728850250965,-1383.65,0.00022499,2]
[340217672,1728850250975,-1383.65,0.00022499,2]
[340217673,1728850250984,-1383.65,0.00022499,2]
[340217674,1728850250995,-1383.65,0.00022499,2]
[340217675,1728850251005,-1383.65,0.00022499,2]
[340217676,1728850251014,-1383.65,0.00022499,2]
[340217677,1728850251024,-1383.66,0.00022499,2]
[340217678,1728850251034,-1241.58,0.00022499,2]
[340217679,1728850251044,-1241.58,0.00022499,2]
[340217680,1728850251054,-1241.58,0.00022499,2]
[340217681,1728850251063,-1241.58,0.00022499,2]
[340217682,1728850251072,-1241.58,0.00022499,2]
[340217683,1728850251081,-1241.58,0.00022499,2]
[340217684,1728850251090,-1241.58,0.00022499,2]
[340217685,1728850251100,-1241.58,0.00022499,2]
[340217686,1728850251110,-1241.58,0.00022499,2]
[340217687,1728850251119,-1241.58,0.00022499,2]
[340217688,1728850251129,-1241.58,0.00022499,2]
[340217689,1728850251139,-1241.58,0.00022499,2]
[340217690,1728850251148,-1241.58,0.00022499,2]
[340217691,1728850251158,-1241.58,0.00022499,2]
[340217692,1728850251167,-1241.58,0.00022499,2]
[340217693,1728850251177,-1241.58,0.00022499,2]
[340217694,1728850251187,-1241.58,0.00022499,2]
[340217695,1728850251198,-1241.58,0.00022499,2]
[340217696,1728850251207,-1241.58,0.00022499,2]
[340217697,1728850251218,-1241.79703555,0.00022499,2]
[340217698,1728850251228,-829.01,0.00022499,2]
[340217699,1728850251236,-829.01,0.00022499,2]
[340217700,1728850251245,-829.01,0.00022499,2]
[340217701,1728850251255,-829.01,0.00022499,2]
[340217702,1728850251264,-829.01,0.00022499,2]
[340217703,1728850251274,-829.01,0.00022499,2]
[340217704,1728850251284,-829.01,0.00022499,2]
[340217705,1728850251293,-829.01,0.00022499,2]
[340217706,1728850251302,-829.01,0.00022499,2]
[340217707,1728850251311,-829.01,0.00022499,2]
[340217708,1728850251320,-829.01,0.00022499,2]
[340217709,1728850251329,-829.01,0.00022499,2]
[340217710,1728850251339,-829.01,0.00022499,2]
[340217711,1728850251348,-829.01,0.00022499,2]
[340217712,1728850251357,-829.01,0.00022499,2]
[340217713,1728850251367,-829.01,0.00022499,2]
[340217714,1728850251376,-829.01,0.00022499,2]
[340217715,1728850251385,-829.01,0.00022499,2]
[340217716,1728850251395,-829.01,0.00022499,2]
[340217717,1728850251405,-829.01,0.00022499,2]
[340217718,1728850251414,-829.23,0.00022499,2]
[340217719,1728850251423,-1193.55,0.00022499,2]
[340217720,1728850251434,-1193.55,0.00022499,2]
[340217721,1728850251444,-1193.55,0.00022499,2]
[340217722,1728850251454,-1193.55,0.00022499,2]
[340217723,1728850251464,-1193.55,0.00022499,2]
[340217724,1728850251474,-1193.55,0.00022499,2]
[340217725,1728850251483,-1193.55,0.00022499,2]
[340217726,1728850251493,-1193.55,0.00022499,2]
[340217727,1728850251502,-1193.55,0.00022499,2]
[340217728,1728850251512,-1193.55,0.00022499,2]
[340217729,1728850251521,-1193.55,0.00022499,2]
[340217730,1728850251531,-1193.55,0.00022499,2]
[340217731,1728850251541,-1345.52,0.00022499,2]
[340217732,1728850251551,-3677236.76860278,0.000225,2]
[340217733,1728850251651,-91132.92550034,0.000225,2]
[340217734,1728850251663,-2080.25724065,0.000225,2]
[340217735,1728850251675,-12277.84948,0.000225,2]
[340217736,1728850251698,-1345.52,0.00022499,2]
[340217737,1728850251708,-273.34926637,0.00022499,2]
[340217738,1728850251720,-920.20073363,0.00022499,2]
[340217739,1728850251730,-4387.69926637,0.000225,2]
[340217740,1728850251741,-711.24,0.000225,2]
[340217741,1728850251752,-611.08,0.000225,2]
[340217742,1728850251763,-609.16,0.000225,2]
[340217743,1728850251774,-432.31164817,0.000225,2]
[340217744,1728850251787,-493.33589546,0.000225,2]
[340217745,1728850251900,-506.68297735,0.00022489,2]
[340217746,1728850251909,-501.26508141,0.00022489,2]
[340217747,1728850251919,-212.05194124,0.00022499,2]
[340217748,1728850251935,-413.90467269,0.00022499,2]
[340217749,1728850251947,-268.02886842,0.00022499,2]
[340217750,1728850251963,-299.56451765,0.00022499,2]
[340217751,1728850251974,-1345.52,0.00022499,2]
[340217752,1728850251984,-1192.07129566,0.00022499,2]
[340217753,1728850252001,-1.47870434,0.00022499,2]
[340217754,1728850252012,-1345.52,0.00022499,2]
[340217755,1728850252021,-1193.55,0.00022499,2]
[340217756,1728850252037,-1345.52,0.00022499,2]
[340217757,1728850252046,-1193.55,0.00022499,2]
[340217758,1728850252055,-1345.52,0.00022499,2]
[340217759,1728850252064,-1193.55,0.00022499,2]
[340217760,1728850252074,-1345.52,0.00022499,2]
[340217761,1728850252083,-1193.55,0.00022499,2]
[340217762,1728850252093,-1345.52,0.00022499,2]
[340217763,1728850252104,-1193.55,0.00022499,2]
[340217764,1728850252114,-1345.52,0.00022499,2]
[340217765,1728850252124,-1193.55,0.00022499,2]
[340217766,1728850252134,-1345.52,0.00022499,2]
[340217767,1728850252144,-994.97085229,0.00022499,2]
[340217768,1728850252156,-350.54914771,0.00022499,2]
[340217769,1728850252166,-3275159.8789815,0.000225,2]
[340217770,1728850252177,-789.17308475,0.000225,2]
[340217771,1728850252294,-916.57244142,0.000224,2]
[340217772,1728850252306,-507.85830434,0.000224,2]
[340217773,1728850252316,-1193.71402948,0.00022499,2]
[340217774,1728850252328,-1345.52,0.00022499,2]
[340217775,1728850252338,-1345.52,0.00022499,2]
[340217776,1728850252349,-1345.52,0.00022499,2]
[340217777,1728850252359,-1345.52,0.00022499,2]
[340217778,1728850252369,-1345.52,0.00022499,2]
[340217779,1728850252380,-1345.52,0.00022499,2]
[340217780,1728850252389,-1345.52,0.00022499,2]
[340217781,1728850252399,-1345.52,0.00022499,2]
[340217782,1728850252407,-14200.54704587,0.000225,2]
[340217783,1728850252419,-3778.55875609,0.000225,2]
[340217784,1728850252431,-3390.33831613,0.000225,2]
[340217785,1728850252452,-1190.98,0.00022489,2]
[340217786,1728850252463,-335.982912,0.00022499,2]
[340217787,1728850252475,-1009.537088,0.00022499,2]
[340217788,1728850252485,-30762.52844307,0.000225,2]
[340217803,1728851280297,750.0,0.0001,2]
[340217813,1728851432346,-394.272155,0.00010845,2]
[340217814,1728851432355,-182.76907668,0.000109,2]
[340217815,1728851432364,-86.63147753,0.00010959,2]
[340217816,1728851432403,-73.68852247,0.00010959,2]
[340217817,1728851432412,-155.99,0.00010959,2]
[340217818,1728851432421,-369.92,0.00010959,2]
[340217819,1728851432430,-8.745441,0.00010959,2]
[340217820,1728851432441,-15853.30570806,0.00010959,2]
[340217821,1728851432462,-898.95103606,0.00010959,2]
[340217822,1728851432473,-2084.775,0.00010959,2]
[340217823,1728851432484,-849.36959246,0.00010959,2]
[340217824,1728851432495,-1362.38424677,0.00010959,2]
[340217825,1728851432526,-6236.81216735,0.00010959,2]
[340217826,1728851432537,-4592.22575356,0.00010959,2]
[340217827,1728851432550,-563.10986677,0.00010959,2]
[340217828,1728851432560,-1837.68576623,0.00010959,2]
[340217829,1728851432573,-6.37136537,0.00010959,2]
[340217830,1728851432584,-500.0,0.00010973,2]
[340217831,1728851432593,-500.0,0.00010973,2]
[340217832,1728851432604,-500.0,0.00010999,2]
[340217833,1728851432614,-233.93710777,0.00010999,2]
[340217834,1728851432625,-192.29268759,0.00010999,2]
[340217835,1728851432636,-500.0,0.00010999,2]
[340217837,1728851432648,-500.0,0.00010999,2]
[340217839,1728851432658,-269.74015614,0.00010999,2]
[340217841,1728851432668,-150.0,0.00011,2]
[340217843,1728851432677,-7838.57578773,0.00011,2]
[340217844,1728851432696,-1425.76150624,0.00011,2]
[340217845,1728851432707,-1303.27384699,0.00011,2]
[340217846,1728851432718,-741.7305414,0.00011,2]
[340217847,1728851432728,-396.22046259,0.00011,2]
[340217853,1728851438484,-186.0241108,0.000109,2]
[340217854,1728851438493,-19172.95302449,0.00011,2]
[340217855,1728851438543,-1300.0,0.00011,2]
[340217856,1728851438600,-608.59663937,0.00011,2]
[340217857,1728851438611,-1632.705,0.00011,2]
[340217858,1728851438657,-347040.31418719,0.00011,2]
[340217859,1728851438716,-299.25,0.00011,2]
[340218000,1728851440389,-315.3343428,0.00011,2]
[340218007,1728851440446,-707.12336694,0.00011,2]
[340218009,1728851440458,-13256.87732019,0.00011,2]
[340218011,1728851440469,-5339.53967571,0.00011,2]
[340218038,1728851440721,-586.1870618,0.00011,2]
[340218598,1728851446424,-1261.11299014,0.00011,2]
[340218613,1728851446641,-1138.28203649,0.00011,2]
[340218962,1728851746756,550.0,0.0001,2]
[340218969,1728852468131,177.04,9.424e-05,2]
[340218970,1728852469389,346.98,9.862e-05,2]
[340218984,1728852631508,-150.0,0.00010898,2]
[340218985,1728852631518,-278.57368907,0.00010898,2]
[340218987,1728852631529,-21.42631093,0.00010898,2]
[340218988,1728852631538,-475.5344,0.00010899,2]
[340218989,1728852631548,-451.18060408,0.00010899,2]
[340218990,1728852631564,-382.31751455,0.00010899,2]
[340218991,1728852631576,-1601.38575,0.00010899,2]
[340218997,1728852631619,-460.19652237,0.00010899,2]
[340218999,1728852631675,-401.44091038,0.00010899,2]
[340219000,1728852631687,-290.16336359,0.00010899,2]
[340219001,1728852631699,-4207.88817068,0.00010899,2]
[340219002,1728852631731,-23779.06796435,0.00010899,2]
[340219003,1728852631742,-3644.1169,0.00010899,2]
[340219004,1728852631751,-7058.0264,0.00010899,2]
[340219005,1728852631760,-2548.8348709,0.00010899,2]
[340219006,1728852631770,-160.9889775,0.000109,2]
[340219007,1728852631779,-316.45802063,0.000109,2]
[340219009,1728852631789,-205.47280902,0.000109,2]
[340219011,1728852631799,-5236.49784558,0.000109,2]
[340219012,1728852631808,-159.34,0.00010959,2]
[340219014,1728852631818,-158.67,0.00010959,2]
[340219016,1728852631828,-500.0,0.00010973,2]
[340219018,1728852631838,-500.0,0.00010973,2]
[340219020,1728852631847,-500.0,0.00010973,2]
[340219022,1728852631858,-159.39020912,0.00010989,2]
[340219024,1728852631867,-554.25256083,0.00010996,2]
[340219026,1728852631877,-4434.02048664,0.00010997,2]
[340219028,1728852631886,-500.0,0.00010998,2]
[340219030,1728852631896,-500.0,0.00010998,2]
[340219032,1728852631906,-424.11791238,0.00010998,2]
[340219034,1728852631915,-1054.35,0.00010998,2]
[340219035,1728852631924,-1056.52,0.00010998,2]
[340219036,1728852631934,-1127.45,0.00010998,2]
[340219037,1728852631943,-814.0,0.00010998,2]
[340219038,1728852631953,-876.16,0.00010998,2]
[340219039,1728852631962,-646.16,0.00010998,2]
[340219040,1728852631972,-598.84,0.00010998,2]
[340219041,1728852631981,-242.38419342,0.00010998,2]
[340219042,1728852631991,-553.52,0.00010998,2]
[340219043,1728852632000,-1276.16,0.00010998,2]
[340219044,1728852632010,-1276.16,0.00010998,2]
[340219045,1728852632019,-500.0,0.00010998,2]
[340219046,1728852632029,-499.99,0.00010998,2]
[340219047,1728852632039,-1084.7,0.00010998,2]
[340219048,1728852632049,-1084.7,0.00010998,2]
[340219049,1728852632059,-1034.04,0.00010998,2]
[340219050,1728852632069,-1034.04,0.00010998,2]
[340219051,1728852632079,-938.02,0.00010998,2]
[340219052,1728852632088,-938.02,0.00010998,2]
[340219053,1728852632098,-856.26,0.00010998,2]
[340219054,1728852632107,-856.26,0.00010998,2]
[340219055,1728852632117,-966.4,0.00010998,2]
[340219056,1728852632127,-966.4,0.00010998,2]
[340219057,1728852632140,-697.8,0.00010998,2]
[340219058,1728852632150,-697.8,0.00010998,2]
[340219059,1728852632160,-500.0,0.00010998,2]
[340219060,1728852632170,-500.0,0.00010998,2]
[340219061,1728852632179,-500.0,0.00010998,2]
[340219062,1728852632188,-500.0,0.00010998,2]
[340219063,1728852632198,-500.0,0.00010998,2]
[340219064,1728852632207,-1272.98,0.00010998,2]
[340219065,1728852632217,-500.0,0.00010999,2]
[340219066,1728852632227,-500.0,0.00010999,2]
[340219067,1728852632236,-500.0,0.00010999,2]
[340219068,1728852632245,-500.0,0.00010999,2]
[340219069,1728852632255,-438.6,0.00010999,2]
[340219070,1728852632265,-751.39,0.00010999,2]
[340219071,1728852632274,-751.39,0.00010999,2]
[340219072,1728852632284,-751.39,0.00010999,2]
[340219073,1728852632293,-751.39,0.00010999,2]
[340219074,1728852632302,-751.39,0.00010999,2]
[340219075,1728852632311,-751.39,0.00010999,2]
[340219076,1728852632320,-751.39,0.00010999,2]
[340219077,1728852632329,-751.39,0.00010999,2]
[340219078,1728852632339,-751.39,0.00010999,2]
[340219079,1728852632348,-751.39,0.00010999,2]
[340219080,1728852632358,-751.39,0.00010999,2]
[340219081,1728852632368,-751.39,0.00010999,2]
[340219082,1728852632377,-751.39,0.00010999,2]
[340219083,1728852632387,-751.39,0.00010999,2]
[340219084,1728852632397,-751.39,0.00010999,2]
[340219085,1728852632406,-751.39,0.00010999,2]
[340219086,1728852632416,-751.39,0.00010999,2]
[340219087,1728852632427,-751.39,0.00010999,2]
[340219088,1728852632437,-751.39,0.00010999,2]
[340219089,1728852632446,-751.39,0.00010999,2]
[340219090,1728852632455,-751.39,0.00010999,2]
[340219091,1728852632466,-751.39,0.00010999,2]
[340219092,1728852632475,-751.39,0.00010999,2]
[340219093,1728852632485,-751.55228574,0.00010999,2]
[340219094,1728852632494,-1141.35,0.00010999,2]
[340219095,1728852632503,-1141.35,0.00010999,2]
[340219096,1728852632514,-1141.35,0.00010999,2]
[340219097,1728852632524,-1141.35,0.00010999,2]
[340219098,1728852632533,-1141.35,0.00010999,2]
[340219099,1728852632542,-1141.35,0.00010999,2]
[340219100,1728852632552,-1141.35,0.00010999,2]
[340219101,1728852632562,-1141.35,0.00010999,2]
[340219102,1728852632571,-1141.35,0.00010999,2]
[340219103,1728852632581,-1141.35,0.00010999,2]
[340219104,1728852632591,-1141.35,0.00010999,2]
[340219105,1728852632600,-1141.35,0.00010999,2]
[340219106,1728852632609,-1141.35,0.00010999,2]
[340219107,1728852632619,-1141.35,0.00010999,2]
[340219108,1728852632628,-1141.35,0.00010999,2]
[340219109,1728852632637,-1141.35,0.00010999,2]
[340219110,1728852632647,-1141.35,0.00010999,2]
[340219111,1728852632656,-1141.35,0.00010999,2]
[340219112,1728852632665,-1141.35,0.00010999,2]
[340219113,1728852632675,-1141.35,0.00010999,2]
[340219114,1728852632684,-1141.35,0.00010999,2]
[340219115,1728852632694,-1086.41,0.00010999,2]
[340219116,1728852632703,-1141.35,0.00010999,2]
[340219117,1728852632713,-1086.41,0.00010999,2]
[340219118,1728852632722,-1141.35,0.00010999,2]
[340219119,1728852632731,-1086.41,0.00010999,2]
[340219120,1728852632741,-1141.51417975,0.00010999,2]
[340219121,1728852632751,-1086.41,0.00010999,2]
[340219122,1728852632760,-1086.41,0.00010999,2]
[340219123,1728852632770,-1086.41,0.00010999,2]
[340219124,1728852632780,-1086.41,0.00010999,2]
[340219125,1728852632789,-1086.41,0.00010999,2]
[340219126,1728852632799,-1086.41,0.00010999,2]